Cogmind - Beta 14 @@@ ROGUE MODE // 2024.11.15 @ 17:10:56 Player: ILikeVoltron Result: Core destroyed Performance ------------- Evolutions (0) 0 Regions Visited (1) 200 Robots Destroyed (19) 95 Value Destroyed (289) 289 Prototype IDs (0) 0 Alien Tech Used (0) 0 Bonus (0) 0 TOTAL SCORE: 584 Bonus ------- None Cogmind --------- Core Integrity 0/250 Matter 300/300 Energy 100/100 System Corruption 0% Temperature Cool (0) Movement Core (100) Ox1 Location -10/Materials Parts ------- > --- POWER (1) -------- (None) > --- PROPULSION (2) --- (None) > --- UTILITY (2) ------ Small Storage Unit > --- WEAPON (2) ------- (None) > --- INVENTORY (8) ---- Light Treads Light Treads Light Treads High-capacity Battery (250) Large Matter Pod (150) Improved Terrain Scanner Tractor Beam Peak State ------------ > --- POWER ------------ Light Nuclear Core > --- PROPULSION ------- Aluminum Leg Aluminum Leg > --- UTILITY ---------- Small Storage Unit Improved Terrain Scanner > --- WEAPON ----------- Particle Gun Assault Rifle > --- INVENTORY -------- Light Treads Light Treads Light Treads High-capacity Battery Large Matter Pod Seismic Detector Tractor Beam Mining Laser [Rating: 12] Favorites ----------- Power Light Ion Engine Engine Light Ion Engine Power Core Light Nuclear Core Propulsion Aluminum Leg Leg Aluminum Leg Utility Small Storage Unit Device Seismic Detector Storage Small Storage Unit Weapon Light Assault Rifle Energy Gun Small Laser Ballistic Gun Light Assault Rifle Special Weapon Mining Laser Impact Weapon Hammer Build | -11 -10 ------- Run | Yrd Mat Slots Evolved . | . . Power . | . . Propulsion . | . . Utility . | . . Weapon . | . . Parts Attached 16 | 1 15 Power 1 | . 1 Engine . | . . Core 1 | . 1 Reactor . | . . Propulsion 3 | . 3 Treads . | . . Leg 3 | . 3 Wheel . | . . Hover . | . . Flight . | . . Utility 4 | 1 3 Device 4 | 1 3 Storage . | . . Processor . | . . Hackware . | . . Protection . | . . Artifact . | . . Weapon 8 | . 8 Energy Gun 1 | . 1 Energy Cannon . | . . Ballistic Gun 2 | . 2 Ballistic Cannon . | . . Launcher . | . . Special Weapon 4 | . 4 Impact Weapon 1 | . 1 Slashing Weapon . | . . Piercing Weapon . | . . Special Melee Weapon . | . . Unidentified Prototypes . | . . Parts Lost 8 | . 8 Power 1 | . 1 Propulsion 2 | . 2 Utility 1 | . 1 Weapon 4 | . 4 Highest Loss Streak 7 | . 7 To Critical Strikes . | . . Average Slot Usage (%) 97 | . 97 Engine 9 | . 9 Core 4 | . 4 Leg 27 | . 27 Device 13 | . 13 Storage 14 | . 14 Energy Gun 3 | . 3 Ballistic Gun 17 | . 17 Special Weapon 5 | . 5 Peak Build Rating 12 | 8 12 Average Rating 8 | 7 8 On Entrance 7 | 6 8 Naked Turns . | . . Heaviest Build 16 | 11 16 Greatest Support 20 | 20 20 Greatest Overweight (x) 1 | . 1 Average Overweight (x) . | . . Largest Inventory Capacity 8 | 8 8 Average Capacity 8 | 8 8 Most Carried 8 | 8 8 Average Carried 7 | 6 7 Final Capacity 8 | 8 8 Final Carried 8 | 8 7 Class Distribution -------------------- 73% | Mutant 26% | Scavenger-Mutant Dominant Class ---------------- Mutant | -10/Materials Resources | -11 -10 ----------- Run | Yrd Mat Matter Collected 668 | 276 392 Remotely 106 | 76 30 Salvage Created 424 | 148 276 Parts 42 | 18 24 Haulers Intercepted . | . . Recyclers Shooed . | . . Parts Field Recycled . | . . Retrieved Matter . | . . Parts Self-Destructed . | . . Prevented . | . . Kills | -11 -10 ------- Run | Yrd Mat Combat Hostiles Destroyed 11 | . 11 Guns 11 | . 11 Classes Destroyed 6 | 3 3 Worker 3 | 2 1 Tunneler 3 | 3 . Recycler 1 | 1 . Watcher 1 | . 1 Swarmer 6 | . 6 Grunt 5 | . 5 Best Kill Streak 3 | 2 3 Combat Bots Only 3 | . 3 Max Kills in Single Turn 1 | 1 1 Gunslinging . | . . Exploded . | . . Melee . | . . Uniques/NPCs Destroyed . | . . Combat | -11 -10 -------- Run | Yrd Mat Hostile Shots Fired 132 | . 132 Missed 37 | . 37 Damage Taken 1013 | . 1013 Core 250 | . 250 Absorbed by Shields . | . . Core Remaining (%) 100 | 100 . Volleys Fired 101 | 22 79 Largest 2 | 2 2 Hottest 165 | 60 165 Shots Fired 162 | 44 118 Gun 128 | 44 84 Cannon . | . . Launcher . | . . Special 34 | . 34 Kinetic 92 | 22 70 Thermal 70 | 22 48 Explosive . | . . Electromagnetic . | . . Robot Hit Streak 9 | 7 9 Robot Miss Streak 5 | 2 5 Penetration Max . | . . Secondary Targets 1 | . 1 Max Gunslinging Chain 1 | . 1 Shots Hit Robots 84 | 29 55 Core Hits 31 | 10 21 Critical Kills . | . . Critical Parts Destroyed 1 | . 1 Critical Strikes 1 | . 1 Destroy 1 | . 1 Melee Attacks 2 | . 2 Impact 2 | . 2 Slashing . | . . Piercing . | . . Sneak Attacks . | . . Combat Hostiles . | . . Follow-up Attacks . | . . Damage Inflicted 983 | 296 687 Guns 882 | 296 586 Cannons . | . . Explosions . | . . Melee . | . . Ramming 29 | . 29 Kinetic 553 | 103 450 Thermal 401 | 193 208 Explosive . | . . Electromagnetic . | . . Impact . | . . Slashing . | . . Piercing . | . . Highest Corruption . | . . Average Corruption . | . . Corruption Purged . | . . Corruption Blocked . | . . Overload Shots . | . . Overflow Damage . | . . Projectiles . | . . Explosions . | . . Melee . | . . Knockbacks . | . . Impact . | . . Kinetic . | . . Secondary . | . . Self-Inflicted Damage 8 | . 8 Shots . | . . Rammed 10 | . 10 Targets Rammed 17 | . 17 Kicked 7 | . 7 Crushed . | . . Highest Temperature 330 | 80 330 Average Temperature 71 | 31 80 Received Heat Transfer 504 | . 504 Effects 2 | . 2 Energy Bleed 1 | . 1 Damage (minor) 1 | . 1 Siege Activations . | . . Robots Corrupted . | . . Combat Hostiles . | . . Parts Fried . | . . Impact Corruptions . | . . Robots Melted . | . . Combat Hostiles . | . . Parts Melted . | . . Heat Transferred 896 | 425 471 Parts Sabotaged . | . . Parts Stolen . | . . Parts Stripped . | . . Power Chain Reactions . | . . Alert | -11 -10 ------- Run | Yrd Mat Peak Influence 254 | 30 254 Initial 19 | . 19 Average 128 | 13 145 Maximum Alert Level 1 | . 1 Low Security (%) 77 | 100 74 Level 1 22 | . 25 Level 2 . | . . Level 3 . | . . Level 4 . | . . Level 5 . | . . High Security . | . . Max Security . | . . Squads Dispatched 1 | . 1 Investigation . | . . Extermination . | . . Reinforcement 1 | . 1 Assault . | . . Garrison . | . . Intercept . | . . Searches Triggered . | . . Construction Impeded . | . . Haulers Reinforced . | . . Active Scanning Responses . | . . Cargo Convoy Interrupts . | . . Stealth | -11 -10 --------- Run | Yrd Mat Distress Signals . | . . Communications Jammed . | . . Distress Signals . | . . Times Spotted 18 | . 18 Peak Tracking Total 4 | . 4 Tactical Retreats 2 | . 2 Traps | -11 -10 ------- Run | Yrd Mat Traps Triggered . | . . Indirectly . | . . Trap Hack Attempts . | . . Triggered . | . . Disarmed . | . . Reprogrammed . | . . Reused . | . . Traps Extracted . | . . Installed . | . . Triggered . | . . Machines | -11 -10 ---------- Run | Yrd Mat Machines Disabled . | . . Max in Single Turn . | . . Machines Repaired . | . . Machines Dismantled . | . . Machines Sabotaged . | . . Overloaded Fab Kills . | . . Hacking | -11 -10 --------- Run | Yrd Mat Machines Accessed 5 | . 5 Terminals 5 | . 5 Fabricators . | . . Repair Stations . | . . Recycling Units . | . . Scanalyzers . | . . Garrison Access . | . . Total Hacks 13 | . 13 Successful 8 | . 8 Failed 5 | . 5 Catastrophic 1 | . 1 Database Lockouts . | . . Manual 5 | . 5 Terminals 13 | . 13 Fabricators . | . . Repair Stations . | . . Recycling Units . | . . Scanalyzers . | . . Garrison Access . | . . Terminal Hacks 4 | . 4 Robot Analysis 1 | . 1 Hauler Manifests 1 | . 1 Registered Components 1 | . 1 Zone Layout 1 | . 1 Fabricator Hacks . | . . Repair Station Hacks . | . . Recycling Unit Hacks . | . . Scanalyzer . | . . Garrison Access Hacks . | . . Unauthorized Hacks 4 | . 4 Terminals 4 | . 4 Skim 4 | . 4 Fabricators . | . . Repair Stations . | . . Recycling Units . | . . Scanalyzers . | . . Garrison Access . | . . Data Cores Recovered . | . . Used . | . . Hacking Detections 3 | . 3 Full Trace Events . | . . Feedback Events . | . . Feedback Blocked . | . . Robot Schematics Acquired . | . . Robots Built . | . . Authchips . | . . Time . | . . Total Robot Build Rating . | . . Part Schematics Acquired . | . . Parts Built . | . . Authchips . | . . Time . | . . Total Part Build Rating . | . . Parts Repaired . | . . Time . | . . Parts Recycled . | . . Recycled Matter . | . . Retrieved Matter . | . . Retrieved Components . | . . Parts Scanalyzed . | . . Part Schematics Acquired . | . . Parts Damaged . | . . Bothacking | -11 -10 ------------ Run | Yrd Mat Used RIF Installer . | . . Robots Hacked . | . . Non-combat . | . . Combat . | . . Robot Hacks Applied . | . . Relay Couplers Released . | . . Fabnet Peak Effective % . | . . Robots Rewired . | . . Allies Hacked . | . . Hacks Repelled . | . . Allies | -11 -10 -------- Run | Yrd Mat Total Allies . | . . Largest Group . | . . Highest-Rated Group . | . . Highest-Rated Ally . | . . Total Orders . | . . Ally Attacks . | . . Total Damage . | . . Kills . | . . Allies Corrupted . | . . Allies Melted . | . . Intel | -11 -10 ------- Run | Yrd Mat Robot Analysis Total 1 | . 1 Derelict Logs Recovered . | . . Drone Launches . | . . Drone Recoveries . | . . Exploration | -11 -10 ------------- Run | Yrd Mat Turns Passed 923 | 118 805 Spaces Moved 433 | 26 407 Core 1 | . 1 Treads . | . . Legs 432 | 26 406 Wheels . | . . Hover . | . . Flight . | . . Fastest Speed 100 | 120 100 Average Speed 119 | 120 119 Slowest Speed 120 | 120 120 Overloaded Moves . | . . Propulsion Burnouts . | . . Robots Hopped . | . . Cave-ins Triggered . | . . Exploration Rate (%) 33 | 3 63 Regions Visited 1 Branch Regions . Pre-discovered Areas . | . . Known Exits Taken . | . . Unknown Exits Taken 1 | 1 . Scrap Searched . | . . Spaces Dug 22 | . 22 Terrain Destroyed 29 | . 29 Melee 1 | . 1 Projectile 28 | . 28 AOE . | . . Terrain Rammed . | . . Walls Destroyed . | . . Machines Disabled . | . . Actions | -11 -10 --------- Run | Yrd Mat Total 613 | 73 540 Wait 28 | 19 9 Move 432 | 25 407 Hop . | . . Pick Up 8 | 4 4 Fast Attach 2 | 1 1 Attach 2 | . 2 Detach . | . . Swap 12 | . 12 Drop 10 | 2 8 Fire 101 | 22 79 Melee 2 | . 2 Ram 9 | . 9 Kick 7 | . 7 Crush . | . . Escape Stasis . | . . Rewire . | . . Trap . | . . Miscellaneous . | . . Route ------- -11/Scrapyard -10/Materials (discovered 3 exits: [*Mat x3]) History --------- Turn | Location | Event 1 | -11/Scrapyard | Discovered new exit (range 1) 119 | -11/Scrapyard | Entered Materials 197 | -10/Materials | Discovered new exit (range 6) 284 | -10/Materials | Discovered new exit (range 11) 314 | -10/Materials | Build established: Mutant 848 | -10/Materials | Discovered new exit (range 16) 866 | -10/Materials | Core integrity fell below 50% 905 | -10/Materials | Core integrity fell below 20% 924 | -10/Materials | Core destroyed Last Messages --------------- 00885_ Overheating: Energy bleed (-24). 00888_ K-01 Serf collects debris. 00889_ Overheating: Seismic Detector damaged (-1). 00891_ K-01 Serf collects debris. 00900_ R-06 Scavenger collects Aluminum Leg. 00900_ K-01 Serf collects debris. 00903_ Kicked G-34 Mercenary. 00906_ Kicked G-34 Mercenary out of the way. 00906_ Seismic Detector destroyed. 00907_ Aluminum Leg destroyed. 00907_ Kicked G-34 Mercenary out of the way. 00909_ Kicked G-34 Mercenary. 00910_ Lgt. Nuclear Core destroyed. 00911_ Kicked G-34 Mercenary. 00913_ Particle Gun destroyed. 00913_ Kicked G-34 Mercenary. 00914_ Aluminum Leg destroyed. 00914_ Slammed into G-34 Mercenary. 00921_ Slammed into A-02 Transporter. 00922_ Slammed into G-34 Mercenary. Map ----- +----------------------------------------------------+ | ?????????????????????????????????????????????????? | | ?????????????????????????????????????????????????? | | ?????????????????????????????????????????????????? | | ?????????????????????????????????????????????????? | | ?????????????????????????????????????????????????? | | ?????????????????????????????????????????????????? | | ?####????????????????????????????????????????????? | | ##""#????????????????????????????????????????????? | | "#????????????????????????????????????????????? | | ##????????????????????????????????????????????? | | "" #?????????????????????????????????????????????? | | "" #?????????????????????????????????????????????? | | "" #??????# """ # < #??????# """""??????????????? | | #??????# """ # #??????# ??????????????? | | ##?????# """ + #??????# ??????????????? | | "#?????# # ##############??????????????? | | ##""#?????######## ## # ??????????????? | | #####????????????# ## """""#"" ??????????????? | | #????????????????# ## """""#"Y ??????????????? | | #?????????????#??# ## """""#"" ??????????????? | | #????????????????# ## """""# ??????????????? | | ##?????#???#?????# ## """""# ??????????????? | | "#???????????????# ## """""# ??????????????? | | ###????????##????# ## %"""""# ??????????????? | | #?????????????## ## g ####??????????????? | | " #????????????## ###@########### #?????????? | | " #?????????#???# a% #?????????? | | " #?????????????# T %g #?????????? | | #????????##?#?# % #?????????? | | #?????????#???# ###+####### #?????????? | | #?????????#???# ### ## #?????????? | | #?#???????????# #?# """ ## #?????????? | | #???????????### #?# """ ## #?????????? | | +##????????#????# #?# """ ## #?????????? | | #??????????????# #?# ## #?????????? | | #?###########??# #?# ## #?????????? | | #?# #?## #?# ## #?????????? | | ### #??# #?# ## #?????????? | | # #### #?########### #######???? | | # #"## #??# #???? | | T + + #??# #???? | | # #### ^^#??# #???? | | # #??#^^ #??# ### ########+####???? | | #### #??# #??# #?# #???# !#????? | | ##############??# #??# #?# #???# "T" #????? | | * ####??#?# #### #?# #???# #????? | | """ ## ##???# #?# #???# == !#????? | | """ ##""##### #?# #???# = #????? | | """ "# # #?# #???# #????? | | ## """ ####+### #?# #???########????? | +----------------------------------------------------+ Best States ------------- Heat Dissipation 25 Energy Generation 14 Energy Capacity 160 Matter Stores 300 Matter Capacity 300 Sight Range 16 Terrain Scan Range 16 Terrain Scan Density 10 Evasion (%) 55 Item Schematics ----------------- None Robot Schematics ------------------ None Fabricated ------------ Nothing Alien Tech Used ----------------- None Achievements -------------- None Challenges ------------ None Game ------ Seed CooledGodPlatform Manual? 0 Play Time 00:14:55 Cumulative 184.5 hours Start 2024.11.13 @ 17:37:51 End 2024.11.15 @ 17:10:56 Sessions 4 Manual Loads 0 Difficulty Rogue Special Mode None Game No. 332 Rogue 328 Adventurer 0 Explorer 4 Win Type - Total 0 Types 0/0/0/0/0/0/0/0/0 Lore% 21 Gallery% 47 Achievement% 35 Wizard Run 0 Options --------- Layout 1 ASCII 0 Keyboard 1 Movement Arrows Keybinds 0 Fullscreen 1 Font 32/SmallcapsGlow Map View 130x35 Zoom Use 0% Tactical HUD 1 Map Filters NONE Filters NONE Steam 0 RUN: 7fc31ad6-90a6-473a-947c-77a393a9210d